[Event "Titled Tuesday Blitz April 4 Late 2023"]
[White "Rustemov, Alexander"]
[Black "Kavutskiy, Konstantin"]
[WhiteFideId "4119002"]
[BlackFideId "2026384"]
[WhiteElo "2848"]
[BlackElo "2323"]
[Result "1-0"]
[Round "07"]
[TimeControl "180+2"]
[Date "2023.04.04"]
[WhiteClock "0:00:09"]
[BlackClock "0:00:06"]

1. d4 {[%clk 0:02:51]}  Nf6 {[%clk 0:02:59]} 2. c4 {[%clk 0:02:50]}  g6 {[%clk 0:03:00]} 3. Nf3 {[%clk 0:02:50]}  Bg7 {[%clk 0:03:00]} 4. g3 {[%clk 0:02:50]}  O-O {[%clk 0:03:00]} 5. Bg2 {[%clk 0:02:50]}  d6 {[%clk 0:03:01]} 6. Nc3 {[%clk 0:02:50]}  c5 {[%clk 0:02:58]} 7. dxc5 {[%clk 0:02:47]}  dxc5 {[%clk 0:02:58]} 8. O-O {[%clk 0:02:47]}  Nc6 {[%clk 0:02:58]} 9. Bf4 {[%clk 0:02:46]}  Nh5 {[%clk 0:02:54]} 10. Be3 {[%clk 0:02:46]}  Nd4 {[%clk 0:02:44]} 11. Qc1 {[%clk 0:02:42]}  Qa5 {[%clk 0:02:37]} 12. Kh1 {[%clk 0:02:36]}  Be6 {[%clk 0:02:29]} 13. Nd2 {[%clk 0:02:30]}  Rab8 {[%clk 0:02:26]} 14. a3 {[%clk 0:02:15]}  Rfd8 {[%clk 0:02:18]} 15. Rd1 {[%clk 0:02:10]}  Nf6 {[%clk 0:02:14]} 16. h3 {[%clk 0:02:09]}  h5 {[%clk 0:02:11]} 17. Bf4 {[%clk 0:01:51]}  Rbc8 {[%clk 0:02:02]} 18. e3 {[%clk 0:01:50]}  Nc6 {[%clk 0:01:44]} 19. Qc2 {[%clk 0:01:49]}  Bf5 {[%clk 0:01:32]} 20. Nde4 {[%clk 0:01:46]}  Nxe4 {[%clk 0:01:30]} 21. Nxe4 {[%clk 0:01:44]}  Qb6 {[%clk 0:01:14]} 22. Rxd8+ {[%clk 0:01:30]}  Rxd8 {[%clk 0:01:15]} 23. Rb1 {[%clk 0:01:29]}  Rd7 {[%clk 0:01:07]} 24. b3 {[%clk 0:01:19]}  Qd8 {[%clk 0:01:05]} 25. g4 {[%clk 0:00:50]}  hxg4 {[%clk 0:01:04]} 26. hxg4 {[%clk 0:00:51]}  Bxg4 {[%clk 0:00:41]} 27. Nxc5 {[%clk 0:00:51]}  Rd2 {[%clk 0:00:38]} 28. Qe4 {[%clk 0:00:51]}  Rxf2 {[%clk 0:00:24]} 29. Nxb7 {[%clk 0:00:49]}  Qd2 {[%clk 0:00:24]} 30. Qxc6 {[%clk 0:00:46]}  Qe2 {[%clk 0:00:24]} 31. Kg1 {[%clk 0:00:32]}  Bf5 {[%clk 0:00:19]} 32. Rf1 {[%clk 0:00:31]}  Rxf1+ {[%clk 0:00:18]} 33. Bxf1 {[%clk 0:00:32]}  Qc2 {[%clk 0:00:19]} 34. Nc5 {[%clk 0:00:26]}  Bf6 {[%clk 0:00:18]} 35. Qg2 {[%clk 0:00:23]}  Qc1 {[%clk 0:00:16]} 36. Ne4 {[%clk 0:00:22]}  Qxa3 {[%clk 0:00:15]} 37. Nxf6+ {[%clk 0:00:22]}  exf6 {[%clk 0:00:16]} 38. e4 {[%clk 0:00:17]}  Be6 {[%clk 0:00:16]} 39. Qf3 {[%clk 0:00:16]}  Qb2 {[%clk 0:00:15]} 40. Bg3 {[%clk 0:00:13]}  Kg7 {[%clk 0:00:15]} 41. Bf2 {[%clk 0:00:13]}  Qe5 {[%clk 0:00:15]} 42. Bg2 {[%clk 0:00:11]}  a5 {[%clk 0:00:14]} 43. Qg3 {[%clk 0:00:11]}  Qa1+ {[%clk 0:00:13]} 44. Kh2 {[%clk 0:00:12]}  a4 {[%clk 0:00:13]} 45. bxa4 {[%clk 0:00:12]}  Qxa4 {[%clk 0:00:14]} 46. c5 {[%clk 0:00:11]}  Qd7 {[%clk 0:00:11]} 47. e5 {[%clk 0:00:11]}  fxe5 {[%clk 0:00:05]} 48. Qxe5+ {[%clk 0:00:10]}  Kf8 {[%clk 0:00:06]} 49. c6 {[%clk 0:00:11]}  Qc8 {[%clk 0:00:05]} 50. c7 {[%clk 0:00:11]}  Ke8 {[%clk 0:00:06]} 51. Bc6+ {[%clk 0:00:09]}  Kf8 {[%clk 0:00:06]} 52. Qh8+ {[%clk 0:00:09]}  Ke7 {[%clk 0:00:06]} 53. Bc5# {[%clk 0:00:09]} 1-0


[Site "https://www.chess.com"]

[Event "Titled Tuesday Blitz April 4 Late 2023"]
[White "Omelja, Artem"]
[Black "Pichot, Alan"]
[WhiteFideId "14119846"]
[BlackFideId "110973"]
[WhiteElo "2404"]
[BlackElo "2573"]
[Result "0-1"]
[Round "07"]
[TimeControl "180+2"]
[Date "2023.04.04"]
[WhiteClock "0:00:02"]
[BlackClock "0:00:23"]

1. e4 {[%clk 0:03:00]}  c5 {[%clk 0:02:53]} 2. Nf3 {[%clk 0:03:00]}  d6 {[%clk 0:02:53]} 3. Bb5+ {[%clk 0:02:59]}  Nc6 {[%clk 0:02:51]} 4. O-O {[%clk 0:02:58]}  Bd7 {[%clk 0:02:52]} 5. Re1 {[%clk 0:02:57]}  Nf6 {[%clk 0:02:51]} 6. c3 {[%clk 0:02:56]}  a6 {[%clk 0:02:52]} 7. Bf1 {[%clk 0:02:55]}  Bg4 {[%clk 0:02:52]} 8. d4 {[%clk 0:02:54]}  cxd4 {[%clk 0:02:50]} 9. cxd4 {[%clk 0:02:53]}  Bxf3 {[%clk 0:02:50]} 10. gxf3 {[%clk 0:02:52]}  d5 {[%clk 0:02:50]} 11. Nc3 {[%clk 0:02:43]}  e6 {[%clk 0:02:49]} 12. Bg5 {[%clk 0:02:29]}  Be7 {[%clk 0:02:41]} 13. Bxf6 {[%clk 0:02:25]}  Bxf6 {[%clk 0:02:41]} 14. exd5 {[%clk 0:02:25]}  Nxd4 {[%clk 0:02:41]} 15. Re4 {[%clk 0:02:03]}  Nf5 {[%clk 0:02:21]} 16. dxe6 {[%clk 0:01:54]}  O-O {[%clk 0:02:21]} 17. exf7+ {[%clk 0:01:52]}  Kh8 {[%clk 0:02:21]} 18. Qxd8 {[%clk 0:01:34]}  Raxd8 {[%clk 0:02:22]} 19. Bc4 {[%clk 0:01:34]}  Nd6 {[%clk 0:02:22]} 20. Bd5 {[%clk 0:01:22]}  Nxe4 {[%clk 0:02:17]} 21. fxe4 {[%clk 0:01:23]}  b5 {[%clk 0:02:17]} 22. f4 {[%clk 0:01:21]}  g5 {[%clk 0:02:05]} 23. fxg5 {[%clk 0:01:18]}  Bxg5 {[%clk 0:02:05]} 24. a3 {[%clk 0:01:15]}  Bf6 {[%clk 0:01:56]} 25. Rf1 {[%clk 0:01:05]}  Rd6 {[%clk 0:01:55]} 26. Rf5 {[%clk 0:00:58]}  Bd4+ {[%clk 0:01:54]} 27. Kg2 {[%clk 0:00:42]}  Rf6 {[%clk 0:01:47]} 28. Rh5 {[%clk 0:00:35]}  Rf2+ {[%clk 0:01:34]} 29. Kg3 {[%clk 0:00:31]}  Kg7 {[%clk 0:01:04]} 30. e5 {[%clk 0:00:27]}  Rxb2 {[%clk 0:00:58]} 31. Rg5+ {[%clk 0:00:15]}  Kh6 {[%clk 0:00:58]} 32. Ne4 {[%clk 0:00:15]}  Re2 {[%clk 0:00:40]} 33. h4 {[%clk 0:00:14]}  Rxf7 {[%clk 0:00:30]} 34. Bxf7 {[%clk 0:00:14]}  Rxe4 {[%clk 0:00:31]} 35. e6 {[%clk 0:00:14]}  Bf6 {[%clk 0:00:30]} 36. Rg4 {[%clk 0:00:06]}  Re3+ {[%clk 0:00:28]} 37. Kf4 {[%clk 0:00:04]}  Rxa3 {[%clk 0:00:29]} 38. Kf5 {[%clk 0:00:04]}  Rf3+ {[%clk 0:00:27]} 39. Ke4 {[%clk 0:00:03]}  Rf1 {[%clk 0:00:27]} 40. Be8 {[%clk 0:00:03]}  b4 {[%clk 0:00:24]} 41. Kd5 {[%clk 0:00:03]}  b3 {[%clk 0:00:24]} 42. Ba4 {[%clk 0:00:02]}  b2 {[%clk 0:00:24]} 43. Bc2 {[%clk 0:00:02]}  b1=Q {[%clk 0:00:24]} 44. Bxb1 {[%clk 0:00:02]}  Rxb1 {[%clk 0:00:25]} 45. Ra4 {[%clk 0:00:02]}  Rb6 {[%clk 0:00:24]} 46. Rf4 {[%clk 0:00:03]}  Kg6 {[%clk 0:00:22]} 47. Rg4+ {[%clk 0:00:03]}  Kf5 {[%clk 0:00:22]} 48. Rg1 {[%clk 0:00:03]}  Rb5+ {[%clk 0:00:22]} 49. Kc6 {[%clk 0:00:03]}  Kxe6 {[%clk 0:00:23]} 50. h5 {[%clk 0:00:02]}  Rxh5 {[%clk 0:00:23]} 0-1


[Site "https://www.chess.com"]

[Event "Titled Tuesday Blitz April 4 Late 2023"]
[White "Leitao, Rafael"]
[Black "Loiacono, Antonio"]
[WhiteFideId "2101246"]
[BlackFideId "895415"]
[WhiteElo "2609"]
[BlackElo "2257"]
[Result "1-0"]
[Round "07"]
[TimeControl "180+2"]
[Date "2023.04.04"]
[WhiteClock "0:00:50"]
[BlackClock "0:00:12"]

1. c4 {[%clk 0:03:00]}  c6 {[%clk 0:02:57]} 2. g3 {[%clk 0:02:55]}  d5 {[%clk 0:02:57]} 3. Bg2 {[%clk 0:02:55]}  dxc4 {[%clk 0:02:56]} 4. Nf3 {[%clk 0:02:55]}  Nd7 {[%clk 0:02:52]} 5. O-O {[%clk 0:02:55]}  Nb6 {[%clk 0:02:50]} 6. Qc2 {[%clk 0:02:55]}  Be6 {[%clk 0:02:40]} 7. a4 {[%clk 0:02:50]}  a5 {[%clk 0:02:38]} 8. Na3 {[%clk 0:02:50]}  f6 {[%clk 0:02:37]} 9. Rd1 {[%clk 0:02:45]}  Bf7 {[%clk 0:02:36]} 10. d3 {[%clk 0:02:28]}  cxd3 {[%clk 0:02:34]} 11. Rxd3 {[%clk 0:02:29]}  Qc8 {[%clk 0:02:28]} 12. e4 {[%clk 0:02:28]}  e5 {[%clk 0:02:27]} 13. Be3 {[%clk 0:02:26]}  Bxa3 {[%clk 0:01:58]} 14. Bxb6 {[%clk 0:02:11]}  Be7 {[%clk 0:01:42]} 15. Rad1 {[%clk 0:02:08]}  Be6 {[%clk 0:01:37]} 16. Nd2 {[%clk 0:01:34]}  Nh6 {[%clk 0:01:09]} 17. Nc4 {[%clk 0:01:29]}  O-O {[%clk 0:01:04]} 18. Bxa5 {[%clk 0:01:20]}  b5 {[%clk 0:00:20]} 19. Nb6 {[%clk 0:01:14]}  Qa6 {[%clk 0:00:20]} 20. Qxc6 {[%clk 0:01:02]}  Bb3 {[%clk 0:00:14]} 21. Rxb3 {[%clk 0:00:56]}  Qxa5 {[%clk 0:00:13]} 22. Nxa8 {[%clk 0:00:55]}  Rxa8 {[%clk 0:00:13]} 23. Rxb5 {[%clk 0:00:50]}  Qxa4 {[%clk 0:00:12]} 24. Rb8+ {[%clk 0:00:50]} 1-0


[Site "https://www.chess.com"]

[Event "Titled Tuesday Blitz April 4 Late 2023"]
[White "Kilic, Eray"]
[Black "Makaraci, Tunahan"]
[WhiteFideId "44517173"]
[BlackFideId "6356559"]
[WhiteElo "2328"]
[BlackElo "2160"]
[Result "1-0"]
[Round "07"]
[TimeControl "180+2"]
[Date "2023.04.04"]
[WhiteClock "0:00:23"]
[BlackClock "0:00:05"]

1. d4 {[%clk 0:03:00]}  d5 {[%clk 0:02:56]} 2. Nc3 {[%clk 0:03:01]}  c6 {[%clk 0:02:55]} 3. Bf4 {[%clk 0:02:58]}  g6 {[%clk 0:02:53]} 4. e3 {[%clk 0:02:56]}  Bg7 {[%clk 0:02:53]} 5. Bd3 {[%clk 0:02:54]}  Nd7 {[%clk 0:02:50]} 6. h4 {[%clk 0:02:54]}  h5 {[%clk 0:02:50]} 7. Nf3 {[%clk 0:02:54]}  Ngf6 {[%clk 0:02:50]} 8. Ng5 {[%clk 0:02:54]}  Ng4 {[%clk 0:02:39]} 9. f3 {[%clk 0:02:51]}  Nh6 {[%clk 0:02:39]} 10. Qe2 {[%clk 0:02:46]}  e5 {[%clk 0:02:39]} 11. dxe5 {[%clk 0:02:45]}  Nxe5 {[%clk 0:02:39]} 12. O-O-O {[%clk 0:02:44]}  Nxd3+ {[%clk 0:02:35]} 13. Qxd3 {[%clk 0:02:44]}  O-O {[%clk 0:02:35]} 14. e4 {[%clk 0:02:45]}  Qa5 {[%clk 0:02:15]} 15. exd5 {[%clk 0:02:44]}  Bf5 {[%clk 0:02:13]} 16. Nge4 {[%clk 0:02:44]}  cxd5 {[%clk 0:02:08]} 17. Qxd5 {[%clk 0:02:45]}  Qa6 {[%clk 0:01:59]} 18. Qb5 {[%clk 0:02:32]}  Qxb5 {[%clk 0:01:41]} 19. Nxb5 {[%clk 0:02:33]}  Bxe4 {[%clk 0:01:42]} 20. fxe4 {[%clk 0:02:34]}  Ng4 {[%clk 0:01:43]} 21. Rhf1 {[%clk 0:02:27]}  a6 {[%clk 0:01:41]} 22. Nd6 {[%clk 0:02:27]}  b5 {[%clk 0:01:37]} 23. c3 {[%clk 0:02:20]}  Ra7 {[%clk 0:01:20]} 24. g3 {[%clk 0:02:04]}  Rd7 {[%clk 0:01:19]} 25. Rd2 {[%clk 0:01:43]}  Rfd8 {[%clk 0:01:17]} 26. Bg5 {[%clk 0:01:30]}  f6 {[%clk 0:00:51]} 27. Bf4 {[%clk 0:01:30]}  Bf8 {[%clk 0:00:43]} 28. Rfd1 {[%clk 0:01:30]}  g5 {[%clk 0:00:41]} 29. hxg5 {[%clk 0:01:23]}  Bxd6 {[%clk 0:00:27]} 30. Bxd6 {[%clk 0:01:22]}  fxg5 {[%clk 0:00:26]} 31. e5 {[%clk 0:01:23]}  Kf7 {[%clk 0:00:25]} 32. Re2 {[%clk 0:01:05]}  Ke6 {[%clk 0:00:24]} 33. b3 {[%clk 0:01:04]}  Rf7 {[%clk 0:00:22]} 34. c4 {[%clk 0:01:03]}  bxc4 {[%clk 0:00:22]} 35. bxc4 {[%clk 0:01:04]}  Rf3 {[%clk 0:00:16]} 36. c5 {[%clk 0:00:40]}  Rc8 {[%clk 0:00:16]} 37. Rh1 {[%clk 0:00:37]}  Rc3+ {[%clk 0:00:10]} 38. Rc2 {[%clk 0:00:35]}  Rxc2+ {[%clk 0:00:08]} 39. Kxc2 {[%clk 0:00:35]}  Ne3+ {[%clk 0:00:09]} 40. Kd3 {[%clk 0:00:34]}  Nf5 {[%clk 0:00:05]} 41. Rxh5 {[%clk 0:00:33]}  g4 {[%clk 0:00:05]} 42. Rg5 {[%clk 0:00:25]}  a5 {[%clk 0:00:04]} 43. Rxg4 {[%clk 0:00:23]}  Nxd6 {[%clk 0:00:04]} 44. cxd6 {[%clk 0:00:20]}  Kxe5 {[%clk 0:00:04]} 45. d7 {[%clk 0:00:20]}  Rd8 {[%clk 0:00:05]} 46. Re4+ {[%clk 0:00:20]}  Kf5 {[%clk 0:00:05]} 47. Rd4 {[%clk 0:00:21]}  Ke5 {[%clk 0:00:05]} 48. g4 {[%clk 0:00:21]}  a4 {[%clk 0:00:04]} 49. a3 {[%clk 0:00:21]}  Ke6 {[%clk 0:00:04]} 50. Ke4 {[%clk 0:00:21]}  Rxd7 {[%clk 0:00:03]} 51. Rxd7 {[%clk 0:00:21]}  Kxd7 {[%clk 0:00:04]} 52. Kf5 {[%clk 0:00:22]}  Ke7 {[%clk 0:00:04]} 53. Kg6 {[%clk 0:00:22]}  Kf8 {[%clk 0:00:05]} 54. Kh7 {[%clk 0:00:23]} 1-0


[Site "https://www.chess.com"]

[Event "Titled Tuesday Blitz April 4 Late 2023"]
[White "Thomforde-Toates, Noah"]
[Black "Romkachess"]
[WhiteFideId "30951992"]
[WhiteElo "2706"]
[BlackElo "2467"]
[Result "1-0"]
[Round "07"]
[TimeControl "180+2"]
[Date "2023.04.04"]
[WhiteClock "0:00:46"]
[BlackClock "0:00:03"]

1. d4 {[%clk 0:03:00]}  Nf6 {[%clk 0:02:59]} 2. Nc3 {[%clk 0:03:00]}  d5 {[%clk 0:02:59]} 3. Bf4 {[%clk 0:03:00]}  a6 {[%clk 0:02:57]} 4. e3 {[%clk 0:02:59]}  e6 {[%clk 0:02:56]} 5. Nf3 {[%clk 0:03:00]}  c5 {[%clk 0:02:55]} 6. dxc5 {[%clk 0:03:00]}  Bxc5 {[%clk 0:02:55]} 7. Bd3 {[%clk 0:03:01]}  O-O {[%clk 0:02:55]} 8. O-O {[%clk 0:03:01]}  Nc6 {[%clk 0:02:54]} 9. e4 {[%clk 0:03:02]}  dxe4 {[%clk 0:02:09]} 10. Nxe4 {[%clk 0:03:00]}  Be7 {[%clk 0:02:09]} 11. Qe2 {[%clk 0:02:58]}  Nd5 {[%clk 0:02:06]} 12. Bg3 {[%clk 0:02:51]}  h6 {[%clk 0:02:03]} 13. c4 {[%clk 0:02:42]}  Nf6 {[%clk 0:01:44]} 14. Rfd1 {[%clk 0:02:39]}  Qa5 {[%clk 0:01:43]} 15. Nd6 {[%clk 0:02:33]}  Qh5 {[%clk 0:01:29]} 16. Rac1 {[%clk 0:02:18]}  Bxd6 {[%clk 0:01:04]} 17. Bxd6 {[%clk 0:02:14]}  Re8 {[%clk 0:01:05]} 18. Ne5 {[%clk 0:02:08]}  Qxe2 {[%clk 0:00:28]} 19. Bxe2 {[%clk 0:02:06]}  Nxe5 {[%clk 0:00:15]} 20. Bxe5 {[%clk 0:02:05]}  Nd7 {[%clk 0:00:16]} 21. Bc7 {[%clk 0:02:01]}  e5 {[%clk 0:00:12]} 22. c5 {[%clk 0:01:58]}  Nf6 {[%clk 0:00:12]} 23. b4 {[%clk 0:01:51]}  Be6 {[%clk 0:00:11]} 24. a3 {[%clk 0:01:46]}  Bd5 {[%clk 0:00:10]} 25. Ba5 {[%clk 0:01:40]}  Bc6 {[%clk 0:00:11]} 26. Rd2 {[%clk 0:01:34]}  Ne4 {[%clk 0:00:10]} 27. Rdd1 {[%clk 0:01:34]}  Re7 {[%clk 0:00:10]} 28. f3 {[%clk 0:01:34]}  Nf6 {[%clk 0:00:10]} 29. Rd6 {[%clk 0:01:34]}  Nd5 {[%clk 0:00:10]} 30. Bc4 {[%clk 0:01:31]}  Nf4 {[%clk 0:00:10]} 31. Rcd1 {[%clk 0:01:26]}  Rae8 {[%clk 0:00:10]} 32. Bd8 {[%clk 0:01:24]}  Re6 {[%clk 0:00:07]} 33. Bxe6 {[%clk 0:01:21]}  Nxe6 {[%clk 0:00:08]} 34. Bh4 {[%clk 0:01:16]}  f6 {[%clk 0:00:08]} 35. Bf2 {[%clk 0:01:14]}  Kf7 {[%clk 0:00:08]} 36. Be3 {[%clk 0:01:15]}  Ba4 {[%clk 0:00:08]} 37. R1d2 {[%clk 0:01:14]}  Re7 {[%clk 0:00:09]} 38. Kf2 {[%clk 0:01:12]}  g5 {[%clk 0:00:09]} 39. g4 {[%clk 0:01:11]}  Nc7 {[%clk 0:00:07]} 40. Rb6 {[%clk 0:01:05]}  Bc6 {[%clk 0:00:06]} 41. Rd6 {[%clk 0:01:05]}  Nd5 {[%clk 0:00:06]} 42. Rbxc6 {[%clk 0:01:01]}  bxc6 {[%clk 0:00:07]} 43. Rxc6 {[%clk 0:01:02]}  Rd7 {[%clk 0:00:06]} 44. Rxa6 {[%clk 0:01:01]}  Nc3 {[%clk 0:00:05]} 45. c6 {[%clk 0:00:59]}  Rc7 {[%clk 0:00:05]} 46. a4 {[%clk 0:00:56]}  Nd5 {[%clk 0:00:03]} 47. b5 {[%clk 0:00:56]}  Nb4 {[%clk 0:00:03]} 48. Ra7 {[%clk 0:00:56]}  Rxa7 {[%clk 0:00:02]} 49. Bxa7 {[%clk 0:00:57]}  Ke6 {[%clk 0:00:03]} 50. Bc5 {[%clk 0:00:57]}  Nd5 {[%clk 0:00:03]} 51. a5 {[%clk 0:00:53]}  Nc3 {[%clk 0:00:03]} 52. b6 {[%clk 0:00:46]}  Na4 {[%clk 0:00:03]} 53. b7 {[%clk 0:00:45]}  Nxc5 {[%clk 0:00:02]} 54. b8=Q {[%clk 0:00:46]}  Nd3+ {[%clk 0:00:03]} 55. Ke3 {[%clk 0:00:45]}  Nf4 {[%clk 0:00:04]} 56. Qc8+ {[%clk 0:00:45]}  Kd6 {[%clk 0:00:03]} 57. Qd7+ {[%clk 0:00:45]}  Kc5 {[%clk 0:00:03]} 58. c7 {[%clk 0:00:45]}  Nd5+ {[%clk 0:00:03]} 59. Qxd5+ {[%clk 0:00:45]}  Kxd5 {[%clk 0:00:03]} 60. c8=Q {[%clk 0:00:46]} 1-0


[Site "https://www.chess.com"]

[Event "Titled Tuesday Blitz April 4 Late 2023"]
[White "Ezat, Mohamed"]
[Black "feuervogel1000000"]
[WhiteFideId "10600906"]
[WhiteElo "2386"]
[BlackElo "2297"]
[Result "1-0"]
[Round "07"]
[TimeControl "180+2"]
[Date "2023.04.04"]
[WhiteClock "0:01:19"]
[BlackClock "0:01:39"]

1. d4 {[%clk 0:02:06]}  Nf6 {[%clk 0:02:58]} 2. c4 {[%clk 0:02:06]}  e6 {[%clk 0:02:58]} 3. Nc3 {[%clk 0:02:06]}  d5 {[%clk 0:02:57]} 4. cxd5 {[%clk 0:02:06]}  exd5 {[%clk 0:02:58]} 5. Bg5 {[%clk 0:02:06]}  Be7 {[%clk 0:02:58]} 6. e3 {[%clk 0:02:06]}  O-O {[%clk 0:02:58]} 7. Bd3 {[%clk 0:02:06]}  c6 {[%clk 0:02:59]} 8. Qc2 {[%clk 0:02:07]}  Nbd7 {[%clk 0:02:59]} 9. Nge2 {[%clk 0:02:06]}  h6 {[%clk 0:02:58]} 10. Bf4 {[%clk 0:02:05]}  Re8 {[%clk 0:02:57]} 11. O-O {[%clk 0:02:04]}  Nf8 {[%clk 0:02:58]} 12. Rab1 {[%clk 0:02:02]}  Bd6 {[%clk 0:02:56]} 13. b4 {[%clk 0:02:00]}  Ne6 {[%clk 0:02:54]} 14. Bxd6 {[%clk 0:02:00]}  Qxd6 {[%clk 0:02:55]} 15. b5 {[%clk 0:01:57]}  Bd7 {[%clk 0:02:43]} 16. bxc6 {[%clk 0:01:56]}  Bxc6 {[%clk 0:02:44]} 17. Ng3 {[%clk 0:01:52]}  Ng4 {[%clk 0:02:38]} 18. Qe2 {[%clk 0:01:46]}  h5 {[%clk 0:02:34]} 19. h3 {[%clk 0:01:42]}  Nf4 {[%clk 0:02:03]} 20. Qd1 {[%clk 0:01:39]}  Nxe3 {[%clk 0:01:55]} 21. fxe3 {[%clk 0:01:36]}  Nxd3 {[%clk 0:01:53]} 22. Nf5 {[%clk 0:01:26]}  Qg6 {[%clk 0:01:45]} 23. Qxd3 {[%clk 0:01:23]}  Bd7 {[%clk 0:01:46]} 24. Nxd5 {[%clk 0:01:20]}  Rac8 {[%clk 0:01:39]} 25. Nde7+ {[%clk 0:01:19]} 1-0


[Site "https://www.chess.com"]

[Event "Titled Tuesday Blitz April 4 Late 2023"]
[White "Tsvetkov, Andrey"]
[Black "Krasteva, Beloslava"]
[WhiteFideId "34139360"]
[BlackFideId "2922029"]
[WhiteElo "2319"]
[BlackElo "2187"]
[Result "1-0"]
[Round "07"]
[TimeControl "180+2"]
[Date "2023.04.04"]
[WhiteClock "0:00:49"]
[BlackClock "0:00:02"]

1. d4 {[%clk 0:03:00]}  d5 {[%clk 0:02:59]} 2. c4 {[%clk 0:02:59]}  e6 {[%clk 0:02:59]} 3. Nc3 {[%clk 0:02:58]}  Be7 {[%clk 0:02:59]} 4. Nf3 {[%clk 0:02:53]}  Nf6 {[%clk 0:02:58]} 5. Bf4 {[%clk 0:02:53]}  O-O {[%clk 0:02:56]} 6. e3 {[%clk 0:02:52]}  c5 {[%clk 0:02:55]} 7. dxc5 {[%clk 0:02:47]}  Bxc5 {[%clk 0:02:56]} 8. cxd5 {[%clk 0:02:47]}  exd5 {[%clk 0:02:56]} 9. Be2 {[%clk 0:02:32]}  Nc6 {[%clk 0:02:55]} 10. O-O {[%clk 0:02:32]}  d4 {[%clk 0:02:55]} 11. Na4 {[%clk 0:02:31]}  Bd6 {[%clk 0:02:55]} 12. Bxd6 {[%clk 0:02:28]}  Qxd6 {[%clk 0:02:55]} 13. Nxd4 {[%clk 0:02:29]}  Nxd4 {[%clk 0:02:53]} 14. Qxd4 {[%clk 0:02:30]}  Qxd4 {[%clk 0:02:49]} 15. exd4 {[%clk 0:02:31]}  Rd8 {[%clk 0:02:41]} 16. Rfd1 {[%clk 0:02:27]}  Bf5 {[%clk 0:02:36]} 17. Nc3 {[%clk 0:02:23]}  Rd7 {[%clk 0:02:23]} 18. Rd2 {[%clk 0:02:10]}  Rad8 {[%clk 0:02:23]} 19. Rad1 {[%clk 0:02:10]}  Be4 {[%clk 0:01:57]} 20. f3 {[%clk 0:02:04]}  Bd5 {[%clk 0:01:51]} 21. Kf2 {[%clk 0:02:03]}  Kf8 {[%clk 0:01:46]} 22. Bb5 {[%clk 0:01:59]}  Rd6 {[%clk 0:01:44]} 23. Bd3 {[%clk 0:01:58]}  R6d7 {[%clk 0:01:37]} 24. g4 {[%clk 0:01:54]}  h6 {[%clk 0:01:35]} 25. h4 {[%clk 0:01:54]}  Be6 {[%clk 0:01:22]} 26. Bb5 {[%clk 0:01:44]}  Rd6 {[%clk 0:01:21]} 27. Be2 {[%clk 0:01:43]}  Nd5 {[%clk 0:01:13]} 28. Ne4 {[%clk 0:01:41]}  Rb6 {[%clk 0:01:09]} 29. Nc5 {[%clk 0:01:40]}  Nf4 {[%clk 0:01:04]} 30. Bf1 {[%clk 0:01:35]}  Bxa2 {[%clk 0:00:49]} 31. Ra1 {[%clk 0:01:27]}  Bd5 {[%clk 0:00:39]} 32. Rxa7 {[%clk 0:01:27]}  Ne6 {[%clk 0:00:32]} 33. Ra3 {[%clk 0:01:17]}  Rb4 {[%clk 0:00:24]} 34. Nxe6+ {[%clk 0:01:06]}  Bxe6 {[%clk 0:00:23]} 35. Ke3 {[%clk 0:01:06]}  Bd5 {[%clk 0:00:20]} 36. Bd3 {[%clk 0:01:02]}  b6 {[%clk 0:00:10]} 37. Be4 {[%clk 0:01:01]}  Be6 {[%clk 0:00:09]} 38. d5 {[%clk 0:00:59]}  Bd7 {[%clk 0:00:10]} 39. d6 {[%clk 0:00:59]}  Bb5 {[%clk 0:00:08]} 40. Rc3 {[%clk 0:00:57]}  f6 {[%clk 0:00:05]} 41. Rc7 {[%clk 0:00:55]}  Rc4 {[%clk 0:00:04]} 42. Rb7 {[%clk 0:00:52]}  Bc6 {[%clk 0:00:02]} 43. Rxb6 {[%clk 0:00:48]}  Bxe4 {[%clk 0:00:02]} 44. fxe4 {[%clk 0:00:49]} 1-0


[Site "https://www.chess.com"]

[Event "Titled Tuesday Blitz April 4 Late 2023"]
[White "Hansen, Eric"]
[Black "Djordjevic, Dejan N"]
[WhiteFideId "2606771"]
[BlackFideId "913316"]
[WhiteElo "2561"]
[BlackElo "2261"]
[Result "1-0"]
[Round "07"]
[TimeControl "180+2"]
[Date "2023.04.04"]
[WhiteClock "0:02:14"]
[BlackClock "0:00:04"]

1. d4 {[%clk 0:02:59]}  Nf6 {[%clk 0:02:59]} 2. c4 {[%clk 0:02:52]}  d6 {[%clk 0:02:57]} 3. Nc3 {[%clk 0:02:52]}  g6 {[%clk 0:02:57]} 4. e4 {[%clk 0:02:53]}  Bg7 {[%clk 0:02:57]} 5. f3 {[%clk 0:02:53]}  O-O {[%clk 0:02:58]} 6. Nge2 {[%clk 0:02:54]}  Nc6 {[%clk 0:02:56]} 7. Be3 {[%clk 0:02:54]}  e5 {[%clk 0:02:56]} 8. d5 {[%clk 0:02:54]}  Ne7 {[%clk 0:02:56]} 9. Qd2 {[%clk 0:02:55]}  Ne8 {[%clk 0:02:57]} 10. h4 {[%clk 0:02:55]}  f5 {[%clk 0:02:57]} 11. h5 {[%clk 0:02:55]}  f4 {[%clk 0:02:57]} 12. Bf2 {[%clk 0:02:56]}  g5 {[%clk 0:02:57]} 13. h6 {[%clk 0:02:56]}  Bf6 {[%clk 0:02:57]} 14. c5 {[%clk 0:02:57]}  Kh8 {[%clk 0:02:32]} 15. O-O-O {[%clk 0:02:56]}  a6 {[%clk 0:02:17]} 16. Kb1 {[%clk 0:02:54]}  Bd7 {[%clk 0:02:16]} 17. Nc1 {[%clk 0:02:55]}  g4 {[%clk 0:02:09]} 18. Nb3 {[%clk 0:02:55]}  b5 {[%clk 0:01:40]} 19. Na5 {[%clk 0:02:52]}  Ng8 {[%clk 0:01:32]} 20. Rc1 {[%clk 0:02:50]}  Qe7 {[%clk 0:01:26]} 21. Nc6 {[%clk 0:02:38]}  Qf7 {[%clk 0:01:22]} 22. a3 {[%clk 0:02:29]}  Qg6 {[%clk 0:01:13]} 23. Na2 {[%clk 0:02:28]}  Nxh6 {[%clk 0:01:11]} 24. Qa5 {[%clk 0:02:28]}  g3 {[%clk 0:01:02]} 25. Bg1 {[%clk 0:02:27]}  Bxc6 {[%clk 0:00:59]} 26. dxc6 {[%clk 0:02:26]}  d5 {[%clk 0:00:55]} 27. Bd3 {[%clk 0:02:25]}  dxe4 {[%clk 0:00:48]} 28. Bxe4 {[%clk 0:02:24]}  Qg7 {[%clk 0:00:48]} 29. Nb4 {[%clk 0:02:23]}  Bd8 {[%clk 0:00:37]} 30. Rd1 {[%clk 0:02:23]}  Nf6 {[%clk 0:00:35]} 31. Bc2 {[%clk 0:02:21]}  Re8 {[%clk 0:00:24]} 32. Nxa6 {[%clk 0:02:21]}  e4 {[%clk 0:00:23]} 33. Bd4 {[%clk 0:02:19]}  exf3 {[%clk 0:00:22]} 34. gxf3 {[%clk 0:02:19]}  Qf8 {[%clk 0:00:11]} 35. Qxb5 {[%clk 0:02:17]}  Re6 {[%clk 0:00:07]} 36. Qb7 {[%clk 0:02:14]}  Be7 {[%clk 0:00:05]} 37. Nxc7 {[%clk 0:02:14]}  Rb8 {[%clk 0:00:04]} 38. Nxe6 {[%clk 0:02:14]} 1-0


[Site "https://www.chess.com"]